bitfinex-derivatives/quotes_BNBF0:USTF0_20250709
["timestamp","ask_amount","ask_price","bid_price","bid_amount"]
[1752090148695,1.67661414,669.46,669.16,0.72426734]
[1752090148894,1.67661414,669.46,669.17,0.72426734]
[1752090149096,1.67661414,669.45,669.18,0.72426734]
[1752090149297,1.67661414,669.43,669.19,0.72426734]
[1752090149596,1.67661414,669.43,669.2,0.72426734]
[1752090149896,1.67661414,669.52,669.14,1.917]
[1752090150698,1.67661414,669.51,668.66,1.65548339]
[1752090150897,1.67661414,669.49,668.69,1.65548339]
[1752090151093,1.67661414,669.53,668.73,1.65548339]
[1752090151295,1.67661414,669.53,668.74,0.72494982]
[1752090151597,1.67661414,669.53,668.75,0.72494982]
[1752090151798,1.67661414,669.54,668.76,0.72494982]
[1752090151999,1.67661414,669.2,668.77,0.72494982]
[1752090152193,1.67661414,669.2,668.53,0.26005276]
[1752090152194,1.67661414,669.16,668.78,0.72494982]
[1752090152394,1.67661414,669.18,668.79,0.72494982]
[1752090152694,1.67661414,669.22,668.8,0.72494982]
[1752090152895,1.67661414,669.22,668.81,0.72494982]
[1752090153094,1.67661414,669.22,668.82,0.72494982]
[1752090153292,1.67661414,669.22,668.83,0.72494982]
[1752090153499,1.67661414,669.24,668.84,0.72494982]
[1752090153697,1.67661414,669.28,668.85,0.72494982]
[1752090153894,1.67661414,669.28,668.86,0.72494982]
[1752090154100,1.67661414,669.27,668.87,0.72494982]
[1752090154301,1.67661414,669.27,668.88,0.72494982]
[1752090154499,1.67661414,669.28,668.89,0.72494982]
[1752090154697,1.67661414,669.29,668.9,0.72494982]
[1752090154899,1.67661414,669.29,668.91,0.72494982]
[1752090155100,1.67661414,669.28,668.92,0.72494982]
[1752090155297,1.67661414,669.28,668.93,0.72494982]
[1752090155600,1.67661414,669.3,668.94,0.72494982]
[1752090155800,1.67661414,669.3,668.95,0.72494982]
[1752090156001,1.67661414,669.3,668.96,0.72494982]
[1752090156198,1.67661414,669.3,668.97,0.72494982]
[1752090156501,1.67661414,669.3,668.98,0.72494982]
[1752090156700,1.67661414,669.3,668.99,0.72494982]
[1752090157002,1.67661414,669.33,668.86,2.892]
[1752090157200,1.67661414,669.33,668.87,0.72349572]
[1752090157400,1.67661414,669.34,668.88,0.72349572]
[1752090157596,1.67661414,669.34,668.89,0.72349572]
[1752090157797,1.67661414,669.33,668.9,0.72349572]
[1752090158001,1.67661414,669.33,668.91,0.72349572]
[1752090158297,1.67661414,669.25,668.92,0.72349572]
[1752090158498,1.67661414,669.25,668.93,0.72349572]
[1752090158701,1.67661414,669.22,668.94,0.72349572]
[1752090158903,1.67661414,669.22,668.95,0.72349572]
[1752090159200,1.67661414,669.22,668.96,0.72349572]
[1752090159406,1.67661414,669.22,668.97,0.72349572]
[1752090159704,1.67661414,669.23,668.98,0.72349572]
[1752090159906,1.67661414,669.23,668.99,0.72349572]
[1752090160102,1.67661414,669.23,669.0,0.72349572]
[1752090160301,1.67661414,669.23,669.01,0.72349572]
[1752090160502,1.67661414,669.24,669.02,0.72349572]
[1752090160805,1.67661414,669.23,669.03,0.72349572]
[1752090161003,1.67661414,669.26,669.04,0.72349572]
[1752090161205,1.67661414,669.25,669.05,0.72349572]
[1752090161502,1.67661414,669.26,669.06,0.72349572]
[1752090161802,1.67661414,669.27,669.07,0.72349572]
[1752090162002,1.67661414,669.27,669.08,0.72349572]
[1752090162200,1.67661414,669.27,668.86,2.892]
[1752090162405,1.67661414,669.27,668.87,0.72282204]
[1752090162609,1.67661414,669.27,668.88,0.72282204]
[1752090162803,1.67661414,669.31,668.89,0.72282204]
[1752090163003,1.67661414,669.31,668.9,0.72282204]
[1752090163206,1.67661414,669.31,668.91,0.72282204]
[1752090163406,1.67661414,669.31,668.92,0.72282204]
[1752090163602,1.67661414,669.31,668.93,0.72282204]
[1752090163802,1.67661414,669.31,668.94,0.72282204]
[1752090164004,1.67661414,669.31,668.95,0.72282204]
[1752090164203,1.67661414,669.31,668.96,0.72282204]
[1752090164409,1.67661414,669.31,668.97,0.72282204]
[1752090164704,1.67661414,669.32,668.98,0.72282204]
[1752090164904,1.67661414,669.32,668.99,0.72282204]
[1752090165109,1.67661414,669.31,669.0,0.72282204]
[1752090165310,1.67661414,669.32,669.01,0.72282204]
[1752090165506,1.67661414,669.32,668.86,2.892]
[1752090165507,1.67661414,669.32,669.02,0.72282204]
[1752090165705,1.67661414,669.32,669.03,0.72282204]
[1752090165905,1.67661414,669.34,669.04,0.72282204]
[1752090166105,1.67661414,669.34,669.05,0.72282204]
[1752090166304,1.67661414,669.34,669.06,0.72282204]
[1752090166507,1.67661414,669.34,669.07,0.72282204]
[1752090166705,1.67661414,669.33,669.08,0.72282204]
[1752090166910,1.67661414,669.33,669.09,0.72282204]
[1752090167107,1.67661414,669.33,668.86,2.892]
[1752090167310,1.67661414,669.32,668.87,0.72236191]
[1752090167511,1.67661414,669.34,668.88,0.72236191]
[1752090167706,1.67661414,669.34,668.89,0.72236191]
[1752090167907,1.67661414,669.34,668.9,0.72236191]
[1752090168113,1.67661414,669.34,668.91,0.72236191]
[1752090168312,1.67661414,669.34,668.92,0.72236191]
[1752090168511,1.67661414,669.35,668.93,0.72236191]
[1752090168708,0.26000127,669.7,668.94,0.72236191]
[1752090168912,0.26000127,669.7,668.95,0.72236191]
[1752090169109,0.26000127,669.7,668.96,0.72236191]
[1752090169313,0.26000127,669.7,668.97,0.72236191]
[1752090169508,0.26000127,669.7,668.98,0.72236191]
[1752090169713,0.26000127,669.7,668.99,0.72236191]
[1752090169910,0.26000127,669.7,669.0,0.72236191]
[1752090170110,0.26000127,669.7,669.01,0.72236191]
[1752090170414,0.26000127,669.7,669.02,0.72236191]
[1752090170615,0.26000127,669.7,669.03,0.72236191]
[1752090170916,0.26000127,669.7,668.86,2.892]
[1752090171114,0.26000127,669.7,668.87,0.72200545]
[1752090171314,0.26000127,669.7,668.88,0.72200545]
[1752090171615,0.26000127,669.7,668.89,0.72200545]
[1752090171813,0.26000127,669.7,668.9,0.72200545]
[1752090172014,0.26000127,669.7,668.91,0.72200545]
[1752090172312,0.26000127,669.7,668.92,0.72200545]
[1752090172518,0.26000127,669.7,668.93,0.72200545]
[1752090172717,3.61322956,669.7,668.94,0.72200545]
[1752090172915,3.61322956,669.7,668.95,0.72200545]
[1752090173119,3.61322956,669.7,668.96,0.72200545]
[1752090173320,3.61322956,669.7,668.97,0.72200545]
[1752090173520,0.26000127,669.7,668.98,0.72200545]
[1752090173817,0.26000127,669.7,668.86,2.892]
[1752090174020,0.26000127,669.7,668.87,0.72214102]
[1752090174222,3.35322829,669.69,668.88,0.72214102]
[1752090174422,3.61322956,669.7,668.89,0.72214102]
[1752090174621,3.61322956,669.7,668.9,0.72214102]
[1752090174818,3.61322956,669.7,668.91,0.72214102]
[1752090175119,3.61322956,669.7,668.92,0.72214102]
[1752090175322,0.26000127,669.7,668.93,0.72214102]
[1752090175622,0.26000127,669.7,668.94,0.72214102]
[1752090175817,0.26000127,669.7,668.95,0.72214102]
[1752090176017,0.26000127,669.7,668.96,0.72214102]
[1752090176220,0.26000127,669.7,668.86,2.892]
[1752090176518,0.26000127,669.7,668.87,0.72222572]
[1752090176722,0.26000127,669.7,668.88,0.72222572]
[1752090176921,0.26000127,669.7,668.89,0.72222572]
[1752090177221,0.26000127,669.7,668.9,0.72222572]
[1752090177420,0.26000127,669.7,668.91,0.72222572]
[1752090177623,0.26000127,669.7,668.92,0.72221017]
[1752090177825,0.26000127,669.7,668.93,0.72221017]
[1752090178023,0.26000127,669.7,668.94,0.72221017]
[1752090178224,0.26000127,669.7,668.95,0.72221017]
[1752090178423,0.26000127,669.7,668.96,0.72221017]
[1752090178621,0.26000127,669.7,668.86,2.892]
[1752090178922,0.26000127,669.7,668.87,0.72216452]
[1752090179119,0.26000127,669.7,668.88,0.72216452]
[1752090179320,0.26000127,669.7,668.89,0.72216452]
[1752090179525,0.26000127,669.7,668.9,0.72216452]
[1752090179826,0.26000127,669.7,668.86,2.892]
[1752090180026,0.26000127,669.7,668.87,0.72242963]
[1752090180224,0.26000127,669.7,668.88,0.72242963]
[1752090180422,0.26000127,669.7,668.86,2.892]
[1752090182629,3.61322956,669.7,668.86,2.892]
[1752090182926,3.35322829,669.6,668.86,2.892]
[1752090183225,3.35322829,669.62,668.86,2.892]
[1752090183425,3.35322829,669.61,668.86,2.892]
[1752090184125,3.35322829,669.62,668.86,2.892]
[1752090185935,3.35322829,669.67,668.86,2.892]
[1752090186932,0.26000127,669.7,668.86,2.892]
[1752090193734,0.2468873,669.5,668.86,2.892]
[1752090195237,0.24688293,683.48,668.86,2.892]
[1752090203044,0.24688293,683.48,668.27,0.2468873]
[1752090203243,0.24688293,683.48,668.28,0.72199299]
[1752090203443,3.34565652,668.84,668.29,0.72199299]
[1752090203742,3.34565652,668.84,668.3,0.72199299]
[1752090203942,3.34565652,668.84,668.31,0.72199299]
[1752090204146,3.34565652,668.67,668.32,0.72199299]
[1752090204446,3.34565652,668.66,668.27,0.2468873]
[1752090204641,3.34565652,668.67,668.27,0.2468873]
[1752090205446,3.34565652,668.66,668.27,0.2468873]
[1752090205846,3.34565652,668.67,668.27,0.2468873]
[1752090206041,7.80653188,669.56,668.27,0.2468873]
[1752090206042,3.34565652,668.72,668.27,0.2468873]
[1752090206442,3.34565652,668.71,668.27,0.2468873]
[1752090206646,3.34565652,668.67,668.27,0.2468873]
[1752090206846,3.34565652,668.72,668.27,0.2468873]
[1752090207042,3.34565652,668.72,668.28,1.89]
[1752090207441,3.34565652,668.73,668.28,1.89]
[1752090207643,3.34565652,668.72,668.28,1.89]
[1752090208446,3.34565652,668.7,668.28,1.89]
[1752090209245,3.34565652,668.69,668.28,1.89]
[1752090209442,3.34565652,668.62,668.28,1.89]
[1752090209942,3.34565652,668.63,668.28,1.89]
[1752090210145,3.34565652,668.62,668.28,1.89]
[1752090210545,3.34565652,668.6,668.28,1.89]
[1752090210743,3.34565652,668.62,668.28,1.89]
[1752090211144,3.34565652,668.63,668.28,1.89]
[1752090211348,3.34565652,668.65,668.28,1.89]
[1752090211648,3.34565652,668.62,668.28,1.89]
[1752090212849,5.5760942,669.2,668.49,1.65481181]
[1752090213046,5.5760942,669.2,668.5,1.5086751]
[1752090213246,3.34565652,669.46,668.51,1.5086751]
[1752090213451,3.34565652,669.48,668.52,1.5086751]
[1752090213751,3.34565652,669.54,668.53,3.16348691]
[1752090213952,3.34565652,669.54,668.54,1.5086751]
[1752090214246,3.34565652,669.54,668.55,2.23240146]
[1752090214451,3.34565652,669.54,668.56,2.23240146]
[1752090214647,3.34565652,669.54,668.57,2.23240146]
[1752090214851,3.34565652,669.54,668.58,2.23240146]
[1752090215051,3.34565652,669.55,668.59,2.23240146]
[1752090215253,3.34565652,669.55,668.6,2.23240146]
[1752090215452,3.34565652,669.55,668.61,2.23240146]
[1752090215751,3.34565652,669.55,668.62,2.23240146]
[1752090215949,3.34565652,669.57,668.63,2.23240146]
[1752090216153,3.34565652,669.57,668.64,2.23240146]
[1752090216355,3.34565652,669.57,668.65,2.23240146]
[1752090216554,3.34565652,669.56,668.66,2.23240146]
[1752090216751,3.34565652,669.57,668.67,2.23240146]
[1752090216950,3.34565652,669.57,668.68,2.23240146]
[1752090217152,3.34565652,669.57,668.69,2.23240146]
[1752090217353,3.34565652,669.57,668.7,2.23240146]
[1752090217649,3.34565652,669.56,668.71,2.23240146]
[1752090217850,3.34565652,669.56,668.72,2.23240146]
[1752090218054,3.34565652,669.57,668.73,2.23240146]
[1752090218253,3.34565652,669.57,668.74,2.23240146]
[1752090218556,3.34565652,669.56,668.75,2.23240146]
[1752090218755,3.34565652,669.56,668.76,2.23240146]
[1752090219056,3.34565652,669.56,668.77,2.23254817]
[1752090219255,3.34565652,669.56,668.78,2.23254817]
[1752090219453,3.34565652,669.56,668.79,2.23254817]
[1752090219653,3.34565652,669.56,668.8,2.23254817]
[1752090219854,3.34565652,669.56,668.81,2.23254817]
[1752090220151,3.34565652,669.56,668.82,0.72387307]
[1752090220351,3.34565652,669.56,668.83,0.72387307]
[1752090220553,3.34565652,669.56,668.84,0.72387307]
[1752090220750,3.34565652,669.57,668.85,0.72387307]
[1752090220950,3.34565652,669.58,668.86,0.72387307]
[1752090221155,3.34565652,669.58,668.87,0.72387307]
[1752090221351,3.34565652,669.57,668.88,0.72387307]
[1752090221556,3.34565652,669.57,668.89,0.72387307]
[1752090221755,3.34565652,669.57,668.9,0.72387307]
[1752090221955,3.34565652,669.57,668.91,0.72387307]
[1752090222156,3.34565652,669.57,668.92,0.72387307]
[1752090222455,3.34565652,669.57,668.93,0.72387307]
[1752090222653,3.34565652,669.57,668.94,0.72387307]
[1752090222856,3.34565652,669.51,668.95,0.72387307]
[1752090223156,3.34565652,669.51,668.96,0.72387307]
[1752090223452,3.34565652,669.5,668.97,0.72387307]
[1752090223652,3.34565652,669.5,668.98,0.72387307]
[1752090223856,3.34565652,669.5,668.99,0.72387307]
[1752090224053,3.34565652,669.46,668.48,1.65481181]
[1752090224259,3.34565652,669.46,668.49,2.23318505]
[1752090224554,3.34565652,669.44,668.5,2.23318505]
[1752090224754,3.34565652,669.44,668.51,2.23318505]
[1752090224957,3.34565652,669.44,668.52,2.23318505]
[1752090225157,3.34565652,669.41,668.53,2.23318505]
[1752090225358,3.34565652,669.4,668.54,2.2333296]
[1752090225557,3.34565652,669.4,668.55,2.2333296]
[1752090225755,3.34565652,669.37,668.56,2.2333296]
[1752090225960,3.34565652,669.36,668.57,2.2333296]
[1752090226258,3.34565652,669.36,668.58,2.2333296]
[1752090226456,3.34565652,669.36,668.59,2.2333296]
[1752090226655,3.34565652,669.36,668.6,2.2333296]
[1752090226854,3.34565652,669.36,668.61,2.2333296]
[1752090227058,3.34565652,669.35,668.62,2.2333296]
[1752090227259,3.34565652,669.33,668.63,2.2333296]
[1752090227461,3.34565652,669.31,668.64,2.2333296]
[1752090227657,3.34565652,669.31,668.65,2.2333296]
[1752090227854,3.34565652,669.31,668.66,2.2333296]
[1752090228057,3.34565652,669.31,668.67,2.2333296]
[1752090228260,3.34565652,669.33,668.68,2.2333296]
[1752090228562,3.34565652,669.28,668.69,0.7249321]
[1752090228859,3.34565652,669.28,668.7,0.7249321]
[1752090229057,3.34565652,669.28,668.4,1.65481181]
[1752090229058,3.34565652,669.28,668.71,0.7249321]
[1752090229262,3.34565652,669.28,668.72,0.7249321]
[1752090229464,3.34565652,669.28,668.73,0.7249321]
[1752090229761,3.34565652,669.28,668.74,0.7249321]
[1752090229959,3.34565652,669.29,668.75,0.7249321]
[1752090230159,3.34565652,669.29,668.76,0.7249321]
[1752090230462,3.34565652,669.27,668.77,0.7249321]
[1752090230661,3.34565652,669.29,668.41,1.66006939]
[1752090230862,3.34565652,669.31,668.42,2.23550285]
[1752090231062,3.34565652,669.31,668.43,2.23550285]
[1752090231358,3.34565652,669.31,668.44,2.23550285]
[1752090231558,3.34565652,669.31,668.45,2.23550285]
[1752090231762,3.34565652,669.31,668.46,2.23550285]
[1752090231962,3.34565652,669.31,668.47,2.23550285]
[1752090232160,3.34565652,669.29,668.48,2.23550285]
[1752090232464,3.34565652,669.29,668.49,2.23550285]
[1752090232663,3.34565652,669.29,668.38,1.66006939]
[1752090232664,3.34565652,669.29,668.5,2.23550285]
[1752090232859,3.34565652,669.29,668.39,1.66006939]
[1752090232860,3.34565652,669.33,668.51,2.23550285]
[1752090233064,3.34565652,669.33,668.52,2.23550285]
[1752090233261,3.34565652,669.33,668.53,2.23550285]
[1752090233460,3.34565652,669.33,668.54,2.23550285]
[1752090233660,3.34565652,669.33,668.55,2.23550285]
[1752090233960,3.34565652,669.33,668.39,1.66006939]
[1752090233961,3.34565652,669.32,668.56,2.23550285]
[1752090234163,3.34565652,669.32,668.57,2.23550285]
[1752090234362,3.34565652,669.32,668.58,2.23550285]
[1752090234565,3.34565652,669.32,668.59,2.23550285]
[1752090234863,3.34565652,669.32,668.6,2.23550285]
[1752090235065,3.34565652,669.32,668.61,2.23550285]
[1752090235266,3.34565652,669.32,668.62,2.23550285]
[1752090235466,3.34565652,669.33,668.63,2.23550285]
[1752090235667,3.34565652,669.33,668.64,2.23550285]
[1752090235863,3.34565652,669.34,668.65,2.23550285]
[1752090236062,3.34565652,669.34,668.66,0.72548896]
[1752090236364,3.34565652,669.34,668.67,0.72548896]
[1752090236563,3.34565652,669.34,668.68,0.72548896]
[1752090236764,3.34565652,669.34,668.69,0.72548896]
[1752090236964,3.34565652,669.34,668.7,0.72548896]
[1752090237167,3.34565652,669.34,668.71,0.72548896]
[1752090237365,3.34565652,669.34,668.72,0.72548896]
[1752090237664,3.34565652,669.36,668.73,0.72548896]
[1752090237864,3.34565652,669.36,668.74,0.72548896]
[1752090238163,3.34565652,669.36,668.75,0.72548896]
[1752090238362,3.34565652,669.36,668.76,0.72548896]
[1752090238566,3.34565652,669.36,668.77,0.72548896]
[1752090238764,3.34565652,669.36,668.78,0.72548896]
[1752090238968,3.34565652,669.38,668.79,0.72548896]
[1752090239167,3.34565652,669.38,668.8,0.72548896]
[1752090239467,3.34565652,669.4,668.81,0.72548896]
[1752090239765,3.34565652,669.41,668.82,0.72548896]
[1752090239970,3.34565652,669.41,668.83,0.72548896]
[1752090240167,3.34565652,669.41,668.84,0.72548896]
[1752090240367,3.34565652,669.41,668.85,0.72548896]
[1752090240566,3.34565652,669.4,668.86,0.72548896]
[1752090240768,3.34565652,669.4,668.28,1.89]
[1752090240769,3.34565652,669.41,668.87,0.72548896]
[1752090240969,3.34565652,669.41,668.88,0.72548896]
[1752090241269,3.34565652,669.41,668.89,0.72548896]
[1752090241469,3.34565652,669.41,668.9,0.72548896]
[1752090241670,3.34565652,669.41,668.91,0.72548896]
[1752090241869,3.34565652,669.41,668.36,1.66070893]
[1752090242069,3.34565652,669.4,668.37,2.23579478]
[1752090242268,3.34565652,669.4,668.38,2.23579478]
[1752090242467,3.34565652,669.4,668.39,2.23579478]
[1752090242671,3.34565652,669.4,668.4,2.23579478]
[1752090242871,3.34565652,669.39,668.41,2.23579478]
[1752090243070,3.34565652,669.39,668.42,2.23579478]
[1752090243268,3.34565652,669.39,668.43,2.23579478]
[1752090243472,3.34565652,669.39,668.44,2.23579478]
[1752090243772,3.34565652,669.39,668.45,2.23579478]
[1752090243968,3.34565652,669.39,668.46,2.23579478]
[1752090244173,3.34565652,669.39,668.47,2.23579478]
[1752090244372,3.34565652,669.39,668.48,2.23579478]
[1752090244573,3.34565652,669.39,668.49,2.23579478]
[1752090244773,3.34565652,669.39,668.5,2.23579478]
[1752090244973,3.34565652,669.38,668.51,2.23579478]
[1752090245173,3.34565652,669.38,668.52,2.23579478]
[1752090245474,3.34565652,669.38,668.53,1.50994321]
[1752090245674,3.34565652,669.38,668.54,2.23582133]
[1752090245974,3.34565652,669.39,668.55,2.23582133]
[1752090246270,3.34565652,669.39,668.56,2.23582133]
[1752090246479,3.34565652,669.39,668.57,2.23582133]
[1752090246676,3.34565652,669.39,668.58,2.23582133]
[1752090246877,3.34565652,669.39,668.59,2.23582133]
[1752090247076,3.34565652,669.39,668.6,2.23582133]
[1752090247275,3.34565652,669.39,668.61,2.23582133]
[1752090247575,3.34565652,669.39,668.62,2.23582133]
[1752090247781,3.34565652,669.39,668.63,2.23582133]
[1752090248075,3.34565652,669.39,668.64,2.23582133]
[1752090248279,3.34565652,669.39,668.65,0.72587812]
[1752090248477,3.34565652,669.39,668.33,1.66070893]
[1752090248478,3.34565652,669.38,668.66,0.72587812]
[1752090248676,3.34565652,669.35,668.67,0.72587812]
[1752090248876,3.34565652,669.36,668.68,0.72587812]
[1752090249080,3.34565652,669.36,668.69,0.72587812]
[1752090249382,3.34565652,669.35,668.7,0.72587812]
[1752090249579,3.34565652,669.35,668.71,0.72587812]
[1752090249782,3.34565652,669.35,668.72,0.72587812]
[1752090249982,3.34565652,669.35,668.73,0.72587812]
[1752090250181,3.34565652,669.34,668.74,0.72587812]
[1752090250382,3.34565652,669.34,668.75,0.72587812]
[1752090250578,3.34565652,669.34,668.35,1.66070893]
[1752090250579,3.34565652,669.34,668.76,0.72587812]
[1752090250781,3.34565652,669.34,668.77,0.72587812]
[1752090250978,3.34565652,669.35,668.78,0.72587812]
[1752090251281,3.34565652,669.35,668.79,0.72587812]
[1752090251578,3.34565652,669.35,668.8,2.63587812]
[1752090251780,3.34565652,669.35,668.81,0.72587812]
[1752090251983,3.34565652,669.35,668.82,0.72587812]
[1752090252182,3.34565652,669.35,668.83,0.72587812]
[1752090252383,3.34565652,669.35,668.84,0.72587812]
[1752090252678,3.34565652,669.35,668.85,0.72587812]
[1752090252882,3.34565652,669.38,668.86,0.72587812]
[1752090253077,3.34565652,669.38,668.87,0.72587812]
[1752090253278,3.34565652,669.37,668.88,0.72587812]
[1752090253580,3.34565652,669.37,668.89,0.72587812]
[1752090253783,3.34565652,669.37,668.9,0.72587812]
[1752090253985,3.34565652,669.37,668.8,1.91]
[1752090254284,3.34565652,669.37,668.81,0.72621439]
[1752090254485,3.34565652,669.36,668.82,0.72621439]
[1752090254686,3.34565652,669.36,668.83,0.72621439]
[1752090254881,3.34565652,669.36,668.84,0.72621439]
[1752090255085,3.34565652,669.36,668.85,0.72621439]
[1752090255282,3.34565652,669.36,668.86,0.72621439]
[1752090255483,3.34565652,669.36,668.87,0.72621439]
[1752090255681,3.34565652,669.36,668.88,0.72621439]
[1752090255987,3.34565652,669.37,668.89,0.72621439]
[1752090256183,3.34565652,669.37,668.9,0.72621439]
[1752090256389,3.34565652,669.37,668.8,1.91]
[1752090256584,3.34565652,669.37,668.81,0.72642444]
[1752090256786,3.34565652,669.37,668.82,0.72642444]
[1752090256983,3.34565652,669.37,668.83,0.72642444]
[1752090257187,3.34565652,669.37,668.84,0.72642444]
[1752090257385,3.34565652,669.37,668.85,0.72642444]
[1752090257589,3.34565652,669.37,668.86,0.72642444]
[1752090257788,3.34565652,669.37,668.87,0.72642444]
[1752090257990,3.34565652,669.37,668.88,0.72642444]
[1752090258286,3.34565652,669.37,668.89,0.72642444]
[1752090258490,3.34565652,669.37,668.9,0.72642444]
[1752090258686,3.34565652,669.36,668.91,0.72642444]
[1752090258889,3.34565652,669.36,668.8,1.91]
[1752090259188,3.34565652,669.35,668.81,0.72659277]
[1752090259386,3.34565652,669.35,668.82,0.72659277]
[1752090259697,3.34565652,669.35,668.83,0.72659277]
[1752090259887,3.34565652,669.35,668.84,0.72659277]
[1752090260087,3.34565652,669.35,668.85,0.72659277]
[1752090260391,3.34565652,669.35,668.86,0.72659277]
[1752090260591,3.34565652,669.39,668.87,0.72659277]
[1752090260790,3.34565652,669.38,668.88,0.72659277]
[1752090261091,5.5760942,670.02,668.8,1.91]
[1752090261092,3.34565652,669.55,668.89,0.72659277]
[1752090261288,3.34565652,669.59,668.9,0.72659277]
[1752090261484,3.34565652,669.58,668.91,0.72659277]
[1752090261687,3.34565652,669.58,668.92,0.72659277]
[1752090261887,3.34565652,669.58,668.93,0.72659277]
[1752090262088,3.34565652,669.58,668.94,0.72659277]
[1752090262287,3.34565652,669.58,668.95,0.72659277]
[1752090262490,3.34565652,669.58,668.96,0.72659277]
[1752090262689,3.34565652,669.58,668.97,0.72659277]
[1752090262891,3.34565652,669.55,668.98,0.72659277]
[1752090263092,3.34565652,669.55,668.99,0.72659277]
[1752090263293,3.34565652,669.55,669.0,0.72659277]
[1752090263492,3.34565652,669.55,669.01,0.72659277]
[1752090263691,3.34565652,669.54,669.02,0.72659277]
[1752090263889,3.34565652,669.54,668.8,1.91]
[1752090264094,3.34565652,669.54,668.81,0.72682446]
[1752090264291,3.34565652,669.54,668.82,0.72682446]
[1752090264495,3.34565652,669.54,668.83,0.72682446]
[1752090264791,3.34565652,669.54,668.84,0.72682446]
[1752090264994,3.34565652,669.54,668.85,0.72682446]
[1752090265194,3.34565652,669.54,668.86,0.72682446]
[1752090265490,3.34565652,669.54,668.87,0.72682446]
[1752090265694,3.34565652,669.54,668.88,0.72682446]
[1752090265894,3.34565652,669.54,668.89,0.72682446]
[1752090266091,3.34565652,669.54,668.9,0.72682446]
[1752090266289,3.34565652,669.54,668.91,0.72682446]
[1752090266490,3.34565652,669.54,668.92,0.72682446]
[1752090266692,3.34565652,669.54,668.93,0.72682446]
[1752090266896,3.34565652,669.56,668.94,0.72682446]
[1752090267197,3.34565652,669.56,668.95,0.72682446]
[1752090267391,3.34565652,669.56,668.96,0.72682446]
[1752090267595,3.34565652,669.56,668.97,0.72682446]
[1752090267794,3.34565652,669.55,668.98,0.72682446]
[1752090267992,3.34565652,669.55,668.99,0.72682446]
[1752090268298,3.34565652,669.38,669.0,0.72653661]
[1752090268592,3.34565652,669.37,669.01,0.72653661]
[1752090268897,3.34565652,669.35,669.02,0.72653661]
[1752090269092,3.34565652,669.35,669.03,0.72653661]
[1752090269295,3.34565652,669.35,669.04,0.72653661]
[1752090269496,3.34565652,669.35,668.8,1.91]
[1752090269696,3.34565652,669.42,668.81,2.23696785]
[1752090269997,3.34565652,669.43,668.82,0.72642493]
[1752090270197,3.34565652,669.43,668.83,0.72642493]
[1752090270393,3.34565652,669.43,668.84,0.72642493]
[1752090270695,3.34565652,669.45,668.85,0.72642493]
[1752090270893,3.34565652,669.46,668.86,0.72642493]
[1752090271097,3.34565652,669.46,668.87,0.72642493]
[1752090271296,3.34565652,669.42,668.88,0.72642493]
[1752090271496,3.34565652,669.42,668.89,0.72642493]
[1752090271699,3.34565652,669.42,668.9,0.72642493]
[1752090271896,3.34565652,669.42,668.91,0.72642493]
[1752090272196,3.34565652,669.52,668.92,0.72642493]
[1752090272396,3.34565652,669.52,668.93,0.72642493]
[1752090272598,3.34565652,669.52,668.94,0.72642493]
[1752090272800,3.34565652,669.51,668.95,0.72642493]
[1752090273000,3.34565652,669.51,668.96,0.72642493]
[1752090273196,3.34565652,669.51,668.97,0.72642493]
[1752090273396,3.34565652,669.52,668.98,0.72642493]
[1752090273701,3.34565652,669.59,668.99,0.72642493]
[1752090273899,3.34565652,669.59,669.0,0.72642493]
[1752090274096,3.34565652,669.59,669.01,0.72642493]
[1752090274300,3.34565652,669.59,669.02,0.72642493]
[1752090274500,3.34565652,669.59,669.03,0.72642493]
[1752090274797,3.34565652,669.64,669.04,0.72642493]
[1752090274996,3.34565652,669.64,669.05,0.72642493]
[1752090275195,3.34565652,669.65,669.06,0.72642493]
[1752090275396,3.34565652,669.67,669.07,0.72642493]
[1752090275701,3.34565652,669.59,669.08,0.72642493]
[1752090276002,3.34565652,669.61,669.09,0.72642493]
[1752090276302,3.34565652,669.66,669.1,0.72642493]
[1752090276501,3.34565652,669.68,669.11,0.72642493]
[1752090276800,3.34565652,669.68,668.8,1.91]
[1752090277001,3.34565652,669.68,668.81,2.23171528]
[1752090277195,3.34565652,669.69,668.82,2.23171528]
[1752090277398,3.34565652,669.69,668.83,2.23171528]
[1752090277600,3.34565652,669.69,668.84,2.23171528]
[1752090277804,3.34565652,669.69,668.85,2.23171528]
[1752090278005,3.34565652,669.69,668.86,2.23171528]
[1752090278302,3.34565652,669.64,668.87,2.23171528]
[1752090278505,3.34565652,669.67,668.88,2.23171528]
[1752090278705,3.34565652,669.66,668.89,2.23171528]
[1752090278901,3.34565652,669.67,668.9,2.23171528]
[1752090279102,3.34565652,669.67,668.91,2.23171528]
[1752090279404,3.34565652,669.68,668.92,2.23171528]
[1752090279604,3.34565652,669.68,668.93,2.23171528]
[1752090279805,3.34565652,669.68,668.94,0.7243514]
[1752090280100,3.34565652,669.69,668.95,0.7243514]
[1752090280301,3.34565652,669.7,668.96,0.7243514]
[1752090280505,3.34565652,669.7,668.97,0.7243514]
[1752090280705,3.34565652,669.7,668.98,0.7243514]